fUSD/lending_fUSD_20240802
["ID","MTS","AMOUNT","RATE_DAILY","PERIOD"]
[333878479,1722592240222,-500.0,0.00019433,2]
[333878480,1722592240237,-500.0,0.00019433,2]
[333878481,1722592240246,-500.0,0.00019433,2]
[333878482,1722592240255,-500.0,0.00019433,2]
[333878483,1722592240264,-500.0,0.00019433,2]
[333878484,1722592240273,-500.0,0.00019433,2]
[333878485,1722592240283,-500.0,0.00019433,2]
[333878486,1722592240292,-500.0,0.00019433,2]
[333878487,1722592240301,-500.0,0.00019433,2]
[333878488,1722592240311,-500.0,0.00019433,2]
[333878489,1722592240320,-500.0,0.00019433,2]
[333878490,1722592240330,-500.0,0.00019433,2]
[333878491,1722592240339,-500.0,0.00019433,2]
[333878492,1722592240348,-500.0,0.00019433,2]
[333878493,1722592240359,-500.0,0.00019433,2]
[333878494,1722592240368,-500.0,0.00019433,2]
[333878495,1722592240378,-500.0,0.00019433,2]
[333878496,1722592240387,-500.0,0.00019433,2]
[333878497,1722592240396,-500.0,0.00019433,2]
[333878498,1722592240406,-500.0,0.00019433,2]
[333878499,1722592240415,-500.0,0.00019433,2]
[333878500,1722592240424,-1052.44072705,0.00019434,2]
[333878501,1722592240434,-983.17939,0.00019435,2]
[333878502,1722592240443,-153.7698823,0.00019439,2]
[333878503,1722592240452,-1560.72,0.0001944,2]
[333878504,1722592240462,-500.0,0.0001944,2]
[333878505,1722592240472,-543.11,0.0001944,2]
[333878506,1722592240483,-500.0,0.0001944,2]
[333878507,1722592240493,-500.0,0.0001944,2]
[333878508,1722592240502,-500.0,0.0001944,2]
[333878509,1722592240513,-238.66321932,0.0001944,2]
[333878510,1722592240522,-500.0,0.00019441,2]
[333878511,1722592240532,-500.0,0.00019441,2]
[333878512,1722592240541,-500.0,0.00019441,2]
[333878513,1722592240552,-500.0,0.00019441,2]
[333878514,1722592240562,-500.0,0.00019441,2]
[333878516,1722592240571,-500.0,0.00019441,2]
[333878518,1722592240581,-500.0,0.00019441,2]
[333878520,1722592240590,-508.48566698,0.00019441,2]
[333878522,1722592240600,-1560.72,0.00019441,2]
[333878524,1722592240610,-500.0,0.00019441,2]
[333878526,1722592240620,-500.0,0.00019441,2]
[333878528,1722592240629,-501.5159587,0.00019441,2]
[333878530,1722592240639,-500.0,0.00019441,2]
[333878532,1722592240648,-500.0,0.00019441,2]
[333878534,1722592240658,-153.846153,0.00019441,2]
[333878536,1722592240667,-273546.683683,0.00019442,3]
[333878538,1722592240678,-153.7698823,0.00019449,2]
[333878540,1722592240689,-1560.72,0.0001945,2]
[333878542,1722592240699,-500.0,0.00019451,2]
[333878544,1722592240709,-570.37,0.00019451,2]
[333878546,1722592240718,-501.2242226,0.00019451,2]
[333878548,1722592240728,-500.0,0.00019451,2]
[333878550,1722592240742,-500.0,0.00019451,2]
[333878552,1722592240751,-500.0,0.00019451,2]
[333878554,1722592240761,-500.0,0.00019451,2]
[333878556,1722592240771,-500.0,0.00019451,2]
[333878558,1722592240780,-500.0,0.00019451,2]
[333878559,1722592240789,-500.0,0.00019451,2]
[333878561,1722592240799,-1560.72,0.00019451,2]
[333878563,1722592240808,-1560.72,0.00019451,2]
[333878565,1722592240818,-1560.72,0.00019451,2]
[333878567,1722592240827,-1560.72,0.00019451,2]
[333878570,1722592240845,-1560.72,0.00019451,2]
[333878572,1722592240857,-1560.72,0.00019451,2]
[333878574,1722592240869,-1560.72,0.00019451,2]
[333878575,1722592240879,-1560.72,0.00019451,2]
[333878577,1722592240889,-154.7636611,0.00019451,2]
[333878579,1722592240899,-623.71755966,0.00019451,2]
[333878581,1722592240908,-891.68121634,0.00019451,2]
[333878583,1722592240919,-1000.0,0.00019451,2]
[333878585,1722592240930,-2137.31039524,0.00019452,2]
[333878587,1722592240941,-4145.93,0.00019452,2]
[333878589,1722592240953,-3905.08,0.00019452,2]
[333878591,1722592240964,-6494.9,0.00019452,2]
[333878593,1722592240974,-500.0,0.00019452,2]
[333878595,1722592240986,-12092.17,0.00019452,2]
[333878597,1722592240996,-500.0,0.00019452,2]
[333878599,1722592241006,-1311.21,0.00019452,2]
[333878601,1722592241016,-500.0,0.00019452,2]
[333878603,1722592241026,-1080.91,0.00019452,2]
[333878605,1722592241036,-7757.61,0.00019452,2]
[333878607,1722592241046,-2311.53,0.00019452,2]
[333878609,1722592241057,-500.0,0.00019452,2]
[333878611,1722592241067,-1099.49,0.00019452,2]
[333878613,1722592241077,-918.19,0.00019452,2]
[333878614,1722592241086,-635.2210685,0.00019452,2]
[333878616,1722592241096,-500.0,0.00019452,2]
[333878618,1722592241105,-1566.33,0.00019452,2]
[333878620,1722592241115,-1586.22,0.00019452,2]
[333878622,1722592241124,-555.95,0.00019452,2]
[333878624,1722592241134,-1896.22,0.00019452,2]
[333878626,1722592241144,-7419.76,0.00019452,2]
[333878628,1722592241153,-3692.08,0.00019452,2]
[333878630,1722592241163,-20535.55,0.00019452,2]
[333878632,1722592241173,-95716.5,0.00019452,2]
[333878634,1722592241182,-500.0,0.00019452,2]
[333878636,1722592241192,-7489.33,0.00019452,2]
[333878638,1722592241202,-698.11,0.00019452,2]
[333878640,1722592241213,-500.0,0.00019452,2]
[333878642,1722592241223,-500.0,0.00019452,2]
[333878644,1722592241234,-1130.41,0.00019452,2]
[333878646,1722592241244,-1018.65,0.00019452,2]
[333878648,1722592241254,-500.0,0.00019452,2]
[333878650,1722592241263,-6070.97,0.00019452,2]
[333878652,1722592241273,-500.0,0.00019452,2]
[333878654,1722592241283,-3009.5,0.00019452,2]
[333878656,1722592241292,-1120.13,0.00019452,2]
[333878659,1722592241305,-4356.44,0.00019452,2]
[333878661,1722592241315,-778.95,0.00019452,2]
[333878663,1722592241325,-537.19527368,0.00019452,2]
[333878665,1722592241337,-8917.98,0.00019452,2]
[333878667,1722592241348,-500.0,0.00019452,2]
[333878670,1722592241359,-24541.73,0.00019452,2]
[333878672,1722592241369,-500.0,0.00019452,2]
[333878674,1722592241378,-500.0,0.00019452,2]
[333878676,1722592241388,-6906.19,0.00019452,2]
[333878678,1722592241398,-500.0,0.00019452,2]
[333878680,1722592241407,-1265.62,0.00019452,2]
[333878682,1722592241418,-500.0,0.00019452,2]
[333878684,1722592241429,-3218.09,0.00019452,2]
[333878686,1722592241439,-628.16,0.00019452,2]
[333878688,1722592241449,-500.0,0.00019452,2]
[333878690,1722592241459,-1401.64,0.00019452,2]
[333878692,1722592241469,-500.0,0.00019452,2]
[333878694,1722592241479,-1630.81,0.00019452,2]
[333878696,1722592241492,-709.36,0.00019452,2]
[333878698,1722592241502,-19506.4,0.00019452,2]
[333878700,1722592241512,-4091.02,0.00019452,2]
[333878702,1722592241522,-672.7,0.00019452,2]
[333878704,1722592241533,-20767.27,0.00019452,2]
[333878706,1722592241543,-500.0,0.00019452,2]
[333878709,1722592241553,-3393.6,0.00019452,2]
[333878711,1722592241565,-942.94,0.00019452,2]
[333878713,1722592241574,-3481.28,0.00019452,2]
[333878715,1722592241584,-500.0,0.00019452,2]
[333878717,1722592241594,-309.14696755,0.00019452,2]
[333878718,1722592241604,-5028.82,0.00019452,2]
[333878720,1722592241613,-1036.38,0.00019452,2]
[333878723,1722592241624,-5405.76,0.00019452,2]
[333878725,1722592241634,-500.0,0.00019452,2]
[333878727,1722592241643,-722.74,0.00019452,2]
[333878729,1722592241654,-2906.71,0.00019452,2]
[333878731,1722592241664,-1831.09,0.00019452,2]
[333878733,1722592241674,-512.6417938,0.00019452,2]
[333878735,1722592241683,-5394.01,0.00019452,2]
[333878737,1722592241693,-759.49,0.00019452,2]
[333878739,1722592241702,-8893.78,0.00019452,2]
[333878741,1722592241712,-3660.36,0.00019452,2]
[333878743,1722592241721,-2999.59,0.00019452,2]
[333878745,1722592241732,-278.72917712,0.00019452,2]
[333878747,1722592241743,-32963.18,0.00019452,2]
[333878749,1722592241753,-590.79,0.00019452,2]
[333878751,1722592241763,-500.0,0.00019452,2]
[333878753,1722592241772,-500.0,0.00019452,2]
[333878755,1722592241782,-500.0,0.00019452,2]
[333878757,1722592241791,-942.96,0.00019452,2]
[333878759,1722592241802,-3354.78,0.00019452,2]
[333878761,1722592241811,-500.0,0.00019452,2]
[333878763,1722592241820,-500.0,0.00019452,2]
[333878765,1722592241830,-500.0,0.00019452,2]
[333878767,1722592241839,-500.0,0.00019452,2]
[333878769,1722592241849,-444.48041473,0.00019452,2]
[333878771,1722592241858,-540.23,0.00019452,2]
[333878773,1722592241869,-2689.74,0.00019452,2]
[333878775,1722592241880,-500.0,0.00019452,2]
[333878777,1722592241889,-634.36,0.00019452,2]
[333878779,1722592241899,-2175.41,0.00019452,2]
[333878781,1722592241908,-500.0,0.00019452,2]
[333878783,1722592241919,-3132.19,0.00019452,2]
[333878785,1722592241928,-4113.51,0.00019452,2]
[333878787,1722592241939,-1003.21,0.00019452,2]
[333878789,1722592241951,-500.0,0.00019452,2]
[333878791,1722592241960,-77596.28,0.00019452,2]
[333878793,1722592241970,-1003.88,0.00019452,2]
[333878795,1722592241980,-504.94,0.00019452,2]
[333878797,1722592241992,-500.0,0.00019452,2]
[333878799,1722592242002,-500.0,0.00019452,2]
[333878801,1722592242011,-12262.87,0.00019452,2]
[333878803,1722592242021,-14172.16,0.00019452,2]
[333878805,1722592242030,-500.0,0.00019452,2]
[333878807,1722592242040,-14182.94,0.00019452,2]
[333878809,1722592242049,-735.51,0.00019452,2]
[333878811,1722592242058,-4049.11,0.00019452,2]
[333878813,1722592242067,-555.77469212,0.00019452,2]
[333878815,1722592242078,-3750.76,0.00019452,2]
[333878817,1722592242087,-3696.3,0.00019452,2]
[333878819,1722592242096,-1014.04,0.00019452,2]
[333878821,1722592242106,-5507.24,0.00019452,2]
[333878823,1722592242115,-8170.85,0.00019452,2]
[333878825,1722592242124,-8982.52,0.00019452,2]
[333878827,1722592242134,-586.74,0.00019452,2]
[333878829,1722592242143,-2673.6,0.00019452,2]
[333878831,1722592242153,-500.0,0.00019452,2]
[333878833,1722592242164,-500.0,0.00019452,2]
[333878835,1722592242173,-500.0,0.00019452,2]
[333878837,1722592242183,-500.0,0.00019452,2]
[333878839,1722592242192,-500.0,0.00019452,2]
[333878841,1722592242202,-551.84,0.00019452,2]
[333878843,1722592242211,-5708.24,0.00019452,2]
[333878844,1722592242221,-500.0,0.00019452,2]
[333878845,1722592242230,-631.14,0.00019452,2]
[333878846,1722592242241,-500.0,0.00019452,2]
[333878847,1722592242251,-1472.9,0.00019452,2]
[333878848,1722592242260,-1447.15,0.00019452,2]
[333878849,1722592242269,-630.72,0.00019452,2]
[333878850,1722592242278,-578.19,0.00019452,2]
[333878851,1722592242287,-3884.58,0.00019452,2]
[333878852,1722592242297,-6409.39,0.00019452,2]
[333878854,1722592242306,-939.67,0.00019452,2]
[333878856,1722592242315,-4262.13,0.00019452,2]
[333878858,1722592242324,-500.0,0.00019452,2]
[333878860,1722592242335,-193.90120878,0.00019452,2]
[333878862,1722592242344,-16615.98,0.00019452,2]
[333878864,1722592242354,-500.0,0.00019452,2]
[333878866,1722592242364,-7592.3,0.00019452,2]
[333878868,1722592242373,-6996.68,0.00019452,2]
[333878870,1722592242382,-35189.14,0.00019452,2]
[333878872,1722592242392,-500.0,0.00019452,2]
[333878874,1722592242401,-500.0,0.00019452,2]
[333878876,1722592242410,-9052.45,0.00019452,2]
[333878878,1722592242422,-725.18,0.00019452,2]
[333878880,1722592242432,-1709.46,0.00019452,2]
[333878882,1722592242441,-3520.91,0.00019452,2]
[333878884,1722592242450,-2232.56,0.00019452,2]
[333878886,1722592242459,-500.0,0.00019452,2]
[333878888,1722592242469,-6717.65,0.00019452,2]
[333878889,1722592242478,-500.0,0.00019452,2]
[333878890,1722592242490,-1906.07,0.00019452,2]
[333878891,1722592242500,-1274.05,0.00019452,2]
[333878892,1722592242509,-500.0,0.00019452,2]
[333878893,1722592242518,-561.41,0.00019452,2]
[333878894,1722592242529,-846.6,0.00019452,2]
[333878895,1722592242539,-1864.26,0.00019452,2]
[333878896,1722592242549,-501.98216779,0.00019452,2]
[333878897,1722592242558,-500.0,0.00019452,2]
[333878898,1722592242567,-3161.78,0.00019452,2]
[333878899,1722592242578,-1956.79,0.00019452,2]
[333878900,1722592242587,-3947.44,0.00019452,2]
[333878901,1722592242596,-4071.27,0.00019452,2]
[333878902,1722592242606,-500.0,0.00019452,2]
[333878903,1722592242615,-500.0,0.00019452,2]
[333878904,1722592242624,-3021.65,0.00019452,2]
[333878905,1722592242634,-5730.75,0.00019452,2]
[333878906,1722592242644,-500.0,0.00019452,2]
[333878907,1722592242655,-523.29,0.00019452,2]
[333878908,1722592242664,-1821.59,0.00019452,2]
[333878909,1722592242674,-739.49,0.00019452,2]
[333878910,1722592242684,-627.84,0.00019452,2]
[333878911,1722592242694,-944.61,0.00019452,2]
[333878912,1722592242704,-1833.73,0.00019452,2]
[333878913,1722592242714,-500.0,0.00019452,2]
[333878914,1722592242723,-543.27,0.00019452,2]
[333878915,1722592242734,-5387.78,0.00019452,2]
[333878916,1722592242743,-500.0,0.00019452,2]
[333878917,1722592242754,-1755.28,0.00019452,2]
[333878918,1722592242763,-1788.36,0.00019452,2]
[333878920,1722592242773,-4696.45,0.00019452,2]
[333878922,1722592242783,-840.26,0.00019452,2]
[333878924,1722592242792,-5168.2,0.00019452,2]
[333878925,1722592242802,-500.0,0.00019452,2]
[333878926,1722592242811,-1106.1,0.00019452,2]
[333878927,1722592242821,-16487.26,0.00019452,2]
[333878928,1722592242830,-500.0,0.00019452,2]
[333878929,1722592242840,-500.0,0.00019452,2]
[333878930,1722592242851,-500.0,0.00019452,2]
[333878931,1722592242860,-3064.34,0.00019452,2]
[333878932,1722592242872,-500.0,0.00019452,2]
[333878934,1722592242882,-2523.43,0.00019452,2]
[333878935,1722592242892,-980.6,0.00019452,2]
[333878936,1722592242901,-1645.08,0.00019452,2]
[333878937,1722592242911,-1858.13,0.00019452,2]
[333878938,1722592242921,-30744.95,0.00019452,2]
[333878939,1722592242931,-5932.5,0.00019452,2]
[333878940,1722592242942,-1650.39,0.00019452,2]
[333878941,1722592242952,-500.0,0.00019452,2]
[333878942,1722592242962,-3295.16,0.00019452,2]
[333878943,1722592242972,-4321.43,0.00019452,2]
[333878944,1722592242983,-2674.15,0.00019452,2]
[333878945,1722592242993,-31628.14,0.00019452,2]
[333878946,1722592243003,-743.52,0.00019452,2]
[333878947,1722592243014,-500.0,0.00019452,2]
[333878948,1722592243024,-969.1,0.00019452,2]
[333878949,1722592243034,-500.0,0.00019452,2]
[333878950,1722592243046,-2271.65,0.00019452,2]
[333878951,1722592243056,-892.17,0.00019452,2]
[333878952,1722592243066,-3002.41,0.00019452,2]
[333878953,1722592243076,-3191.07,0.00019452,2]
[333878954,1722592243086,-500.0,0.00019452,2]
[333878955,1722592243096,-16073.66,0.00019452,2]
[333878956,1722592243106,-1907.55,0.00019452,2]
[333878957,1722592243116,-1005.2,0.00019452,2]
[333878958,1722592243126,-500.0,0.00019452,2]
[333878959,1722592243135,-500.0,0.00019452,2]
[333878960,1722592243146,-500.0,0.00019452,2]
[333878961,1722592243155,-799.03,0.00019452,2]
[333878962,1722592243165,-500.0,0.00019452,2]
[333878963,1722592243175,-2734.49,0.00019452,2]
[333878964,1722592243184,-3749.75,0.00019452,2]
[333878965,1722592243194,-500.0,0.00019452,2]
[333878966,1722592243204,-880.61,0.00019452,2]
[333878967,1722592243214,-5367.71,0.00019452,2]
[333878968,1722592243224,-5399.49,0.00019452,2]
[333878969,1722592243234,-3917.05,0.00019452,2]
[333878970,1722592243246,-500.0,0.00019452,2]
[333878971,1722592243258,-1869.37,0.00019452,2]
[333878972,1722592243268,-1851.62,0.00019452,2]
[333878973,1722592243278,-500.0,0.00019452,2]
[333878974,1722592243288,-1540.01,0.00019452,2]
[333878975,1722592243299,-863.61,0.00019452,2]
[333878976,1722592243309,-2069.42,0.00019452,2]
[333878977,1722592243318,-574.8369851,0.00019452,2]
[333878978,1722592243328,-40991.33,0.00019452,2]
[333878979,1722592243337,-546.55603554,0.00019452,2]
[333878980,1722592243347,-500.0,0.00019452,2]
[333878981,1722592243356,-931.16,0.00019452,2]
[333878982,1722592243366,-500.0,0.00019452,2]
[333878983,1722592243376,-500.0,0.00019452,2]
[333878984,1722592243386,-532.37,0.00019452,2]
[333878985,1722592243396,-6114.62,0.00019452,2]
[333878986,1722592243405,-8011.98,0.00019452,2]
[333878987,1722592243415,-2911.46,0.00019452,2]
[333878988,1722592243425,-500.0,0.00019452,2]
[333878989,1722592243434,-722.77,0.00019452,2]
[333878990,1722592243444,-15685.72,0.00019452,2]
[333878991,1722592243454,-5728.65,0.00019452,2]
[333878992,1722592243463,-12095.06,0.00019452,2]
[333878993,1722592243473,-500.0,0.00019452,2]
[333878994,1722592243484,-568.95,0.00019452,2]
[333878995,1722592243493,-4630.04,0.00019452,2]
[333878996,1722592243503,-500.0,0.00019452,2]
[333878997,1722592243513,-721.09,0.00019452,2]
[333878999,1722592243522,-972.4,0.00019452,2]
[333879001,1722592243532,-500.0,0.00019452,2]
[333879003,1722592243542,-640.8478319,0.00019452,2]
[333879005,1722592243552,-4677.06,0.00019452,2]
[333879007,1722592243562,-1021.97,0.00019452,2]
[333879008,1722592243572,-7314.75,0.00019452,2]
[333879009,1722592243582,-500.0,0.00019452,2]
[333879010,1722592243591,-500.0,0.00019452,2]
[333879011,1722592243601,-500.0,0.00019452,2]
[333879012,1722592243610,-5201.44,0.00019452,2]
[333879013,1722592243620,-4692.44,0.00019452,2]
[333879014,1722592243630,-1175.79,0.00019452,2]
[333879015,1722592243639,-698.84,0.00019452,2]
[333879016,1722592243649,-632.94,0.00019452,2]
[333879017,1722592243658,-549.68,0.00019452,2]
[333879018,1722592243668,-500.0,0.00019452,2]
[333879019,1722592243677,-1947.56,0.00019452,2]
[333879020,1722592243687,-2004.86,0.00019452,2]
[333879021,1722592243696,-15282.27,0.00019452,2]
[333879022,1722592243705,-500.0,0.00019452,2]
[333879023,1722592243715,-500.0,0.00019452,2]
[333879024,1722592243725,-3931.57,0.00019452,2]
[333879025,1722592243734,-500.0,0.00019452,2]
[333879026,1722592243744,-1709.29,0.00019452,2]
[333879027,1722592243754,-3364.04,0.00019452,2]
[333879028,1722592243764,-500.0,0.00019452,2]
[333879029,1722592243773,-500.0,0.00019452,2]
[333879030,1722592243783,-5546.85,0.00019452,2]
[333879031,1722592243793,-500.0,0.00019452,2]
[333879032,1722592243803,-500.0,0.00019452,2]
[333879033,1722592243812,-1680.68,0.00019452,2]
[333879034,1722592243823,-2127.36,0.00019452,2]
[333879035,1722592244169,-500.0,0.00019452,2]
[333879036,1722592244180,-4258.64,0.00019452,2]
[333879037,1722592244190,-809.6,0.00019452,2]
[333879038,1722592244201,-500.0,0.00019452,2]
[333879039,1722592244212,-500.0,0.00019452,2]
[333879040,1722592244222,-24739.67,0.00019452,2]
[333879041,1722592244232,-1091.5,0.00019452,2]
[333879042,1722592244242,-1217.73,0.00019452,2]
[333879043,1722592244252,-3055.99,0.00019452,2]
[333879044,1722592244261,-500.0,0.00019452,2]
[333879045,1722592244270,-8232.15,0.00019452,2]
[333879046,1722592244280,-1356.09,0.00019452,2]
[333879047,1722592244290,-500.0,0.00019452,2]
[333879048,1722592244300,-5910.43,0.00019452,2]
[333879049,1722592244310,-1139.63,0.00019452,2]
[333879050,1722592244321,-4597.74,0.00019452,2]
[333879051,1722592244330,-4351.02,0.00019452,2]
[333879052,1722592244340,-9705.07,0.00019452,2]
[333879053,1722592244352,-9374.03,0.00019452,2]
[333879054,1722592244362,-500.0,0.00019452,2]
[333879055,1722592244371,-1246.91,0.00019452,2]
[333879056,1722592244381,-500.0,0.00019452,2]
[333879057,1722592244391,-3751.92,0.00019452,2]
[333879058,1722592244401,-753.97,0.00019452,2]
[333879059,1722592244410,-3335.94,0.00019452,2]
[333879060,1722592244420,-500.0,0.00019452,2]
[333879061,1722592244430,-737.84,0.00019452,2]
[333879062,1722592244440,-30430.24,0.00019452,2]
[333879063,1722592244450,-1026.09,0.00019452,2]
[333879064,1722592244460,-4529.53,0.00019452,2]
[333879065,1722592244469,-500.0,0.00019452,2]
[333879066,1722592244479,-1239.84,0.00019452,2]
[333879067,1722592244490,-2521.96,0.00019452,2]
[333879068,1722592244500,-2554.49,0.00019452,2]
[333879069,1722592244510,-500.0,0.00019452,2]
[333879070,1722592244519,-500.0,0.00019452,2]
[333879071,1722592244529,-819.98,0.00019452,2]
[333879072,1722592244538,-786.7,0.00019452,2]
[333879073,1722592244548,-3022.76,0.00019452,2]
[333879074,1722592244558,-1444.59,0.00019452,2]
[333879075,1722592244568,-500.0,0.00019452,2]
[333879076,1722592244577,-5570.77,0.00019452,2]
[333879077,1722592244586,-500.0,0.00019452,2]
[333879078,1722592244596,-505.71,0.00019452,2]
[333879079,1722592244606,-4757.33,0.00019452,2]
[333879080,1722592244616,-500.0,0.00019452,2]
[333879081,1722592244626,-500.0,0.00019452,2]
[333879082,1722592244636,-10616.8,0.00019452,2]
[333879083,1722592244646,-5701.47,0.00019452,2]
[333879084,1722592244656,-1885.53,0.00019452,2]
[333879085,1722592244666,-2731.78,0.00019452,2]
[333879086,1722592244676,-2154.84,0.00019452,2]
[333879087,1722592244686,-2083.27,0.00019452,2]
[333879088,1722592244696,-12997.64,0.00019452,2]
[333879089,1722592244706,-1031.02,0.00019452,2]
[333879090,1722592244715,-1404.03,0.00019452,2]
[333879091,1722592244725,-1649.04,0.00019452,2]
[333879092,1722592244736,-500.0,0.00019452,2]
[333879093,1722592244746,-913.38,0.00019452,2]
[333879094,1722592244756,-613.63,0.00019452,2]
[333879095,1722592244766,-257.09686838,0.00019452,2]
[333879096,1722592244776,-9151.29,0.00019452,2]
[333879097,1722592244786,-12733.81,0.00019452,2]
[333879098,1722592244795,-3183.96,0.00019452,2]
[333879099,1722592244805,-6390.61,0.00019452,2]
[333879100,1722592244815,-4862.09,0.00019452,2]
[333879101,1722592244825,-25213.16,0.00019452,2]
[333879102,1722592244835,-859.01,0.00019452,2]
[333879103,1722592244845,-693.16,0.00019452,2]
[333879104,1722592244854,-500.0,0.00019452,2]
[333879105,1722592244864,-4406.73,0.00019452,2]
[333879106,1722592244878,-500.0,0.00019452,2]
[333879107,1722592244888,-500.0,0.00019452,2]
[333879108,1722592244898,-852.52,0.00019452,2]
[333879109,1722592244908,-500.0,0.00019452,2]
[333879110,1722592244918,-500.0,0.00019452,2]
[333879111,1722592244928,-3609.92,0.00019452,2]
[333879112,1722592244938,-1693.66,0.00019452,2]
[333879113,1722592244950,-500.0,0.00019452,2]
[333879114,1722592244961,-9457.48,0.00019452,2]
[333879115,1722592244970,-1241.9,0.00019452,2]
[333879116,1722592244980,-2040.78,0.00019452,2]
[333879117,1722592244992,-6359.38,0.00019452,2]
[333879118,1722592245002,-5579.66,0.00019452,2]
[333879119,1722592245012,-625.84,0.00019452,2]
[333879120,1722592245022,-500.0,0.00019452,2]
[333879121,1722592245032,-500.0,0.00019452,2]
[333879122,1722592245043,-4008.77,0.00019452,2]
[333879123,1722592245053,-3677.09,0.00019452,2]
[333879124,1722592245063,-567.86,0.00019452,2]
[333879125,1722592245073,-8002.16,0.00019452,2]
[333879126,1722592245083,-5852.43,0.00019452,2]
[333879127,1722592245093,-546.81,0.00019452,2]
[333879128,1722592245103,-3565.97,0.00019452,2]
[333879129,1722592245113,-15325.18,0.00019452,2]
[333879130,1722592245123,-3726.65,0.00019452,2]
[333879131,1722592245133,-562.32,0.00019452,2]
[333879132,1722592245143,-500.0,0.00019452,2]
[333879133,1722592245153,-3391.09,0.00019452,2]
[333879134,1722592245162,-500.0,0.00019452,2]
[333879135,1722592245172,-3160.48,0.00019452,2]
[333879136,1722592245182,-500.0,0.00019452,2]
[333879137,1722592245191,-3656.07,0.00019452,2]
[333879138,1722592245201,-4515.88,0.00019452,2]
[333879139,1722592245211,-500.0,0.00019452,2]
[333879140,1722592245221,-1746.06,0.00019452,2]
[333879141,1722592245231,-500.0,0.00019452,2]
[333879142,1722592245242,-5345.05,0.00019452,2]
[333879143,1722592245252,-500.0,0.00019452,2]
[333879144,1722592245262,-500.0,0.00019452,2]
[333879145,1722592245272,-504.52,0.00019452,2]
[333879146,1722592245283,-3280.07,0.00019452,2]
[333879147,1722592245294,-3795.79,0.00019452,2]
[333879148,1722592245305,-500.0,0.00019452,2]
[333879149,1722592245316,-761.62,0.00019452,2]
[333879150,1722592245325,-508.65,0.00019452,2]
[333879151,1722592245335,-500.0,0.00019452,2]
[333879152,1722592245345,-721.12,0.00019452,2]
[333879153,1722592245355,-500.0,0.00019452,2]
[333879154,1722592245366,-2614.62,0.00019452,2]
[333879155,1722592245375,-3180.99,0.00019452,2]
[333879156,1722592245385,-1857.54,0.00019452,2]
[333879157,1722592245394,-500.0,0.00019452,2]
[333879158,1722592245406,-662.05,0.00019452,2]
[333879159,1722592245415,-1418.82,0.00019452,2]
[333879160,1722592245425,-716.19,0.00019452,2]
[333879161,1722592245435,-500.0,0.00019452,2]
[333879162,1722592245445,-25865.43,0.00019452,2]
[333879163,1722592245456,-1403.09,0.00019452,2]
[333879164,1722592245466,-500.0,0.00019452,2]
[333879165,1722592245476,-1423.21,0.00019452,2]
[333879166,1722592245487,-783.8,0.00019452,2]
[333879167,1722592245497,-500.0,0.00019452,2]
[333879168,1722592245507,-3305.07,0.00019452,2]
[333879169,1722592245516,-998.18,0.00019452,2]
[333879170,1722592245526,-2034.23,0.00019452,2]